Cogmind - Beta 13 @@@ ROGUE MODE // 2024.07.29 @ 17:51:04 Player: Sunvar Result: Destroyed by C-35 Carver with Carbide Saw Performance ------------- Evolutions (6) 3000 Regions Visited (21) 4200 Robots Destroyed (288) 1440 Value Destroyed (9569) 9569 Prototype IDs (52) 1040 Alien Tech Used (0) 0 Bonus (2413) 2413 TOTAL SCORE: 21662 Bonus ------- High Alert Combat Kills 320 Follower Combat Kills 1211 Awakened Behemoth Slayer 1000 Entered Garrisons 400 Aligned with FarCom 300 Built Enhanced Grunts 300 Met R17 at Cetus 500 Friendly Fire -1618 Cogmind --------- Core Integrity 0/1150 Matter 88/300 Energy 99/100 System Corruption 4% Temperature Cool (0) Movement Core (50) Location -4/Factory Parts ------- > --- POWER (2) -------- (None) > --- PROPULSION (5) --- (None) > --- UTILITY (8) ------ (None) > --- WEAPON (4) ------- (None) > --- INVENTORY (5) ---- Improved Heavy Treads Improved Weapon Cycler Medium Regenerative Plating Peak State ------------ > --- POWER ------------ Light Angular Momentum Engine Quantum Reactor > --- PROPULSION ------- Improved Medium Treads Centrium Heavy Treads Centrium Heavy Treads > --- UTILITY ---------- Advanced Heat Sink Advanced Heat Sink Huge Storage Unit Enhanced Optical Array Improved Kinecellerator Centrium Medium Armor Plating Medium Regenerative Plating Force Field > --- WEAPON ----------- Advanced KE Penetrator Advanced KE Penetrator Mini Assault Cannon Antimatter Cannon > --- INVENTORY -------- Micro Nuclear Core Light Fission Core Antimatter Reactor Armored Medium Treads Improved Heavy Treads Centrium Heavy Treads Advanced Heat Sink Experimental Targeting Computer Weapon Cycler Improved Weapon Cycler Graphene Brace Long-range Tractor Beam KE Penetrator Mini Assault Cannon Magnetic Acceleration Cannon Hypervelocity Gauss Cannon Missile Launcher Improved Datajack Improved Plasma Cutter Heavy Mace CR-A16's Behemoth Slayer [Rating: 138] Favorites ----------- Power Improved Ion Engine Engine Improved Ion Engine Power Core Enhanced Nuclear Core Reactor Quantum Reactor Propulsion Light Treads Treads Light Treads Leg Aluminum Leg Wheel Armored Wheel Flight Unit Cesium-ion Thruster Utility Huge Storage Unit Device Cooling System Storage Huge Storage Unit Processor Advanced Signal Interpreter Protection Hardened Medium Armor Plating Weapon Mini Assault Cannon Energy Gun Medium Laser Energy Cannon Guided Plasma Cannon Ballistic Gun Enhanced Autogun Ballistic Cannon Mini Assault Cannon Launcher Grenade Launcher Special Weapon Plasma Cutter Impact Weapon Heavy Mace Piercing Weapon CR-A16's Pointy Stick Special Melee Weapon Improved Datajack Build | -11 -10 -10 -9 -9 -9 -8 -8 -8 -8 -8 -8 -7 -7 -7 -7 -6 -6 -6 -6 -5 -4 ------- Run | Yrd Mat Min Mat Min Exi Min Mat Gar Mat Gar Mat Fac Low Low Zio Pro Fac Ext Cet Fac Fac Slots Evolved 12 | . . . 2 . . . 2 . . . . 2 . . . . 2 . . 2 2 Power 1 | . . . . . . . . . . . . . . . . . 1 . . . . Propulsion 3 | . . . 1 . . . 1 . . . . . . . . . . . . 1 . Utility 6 | . . . 1 . . . . . . . . 1 . . . . 1 . . 1 2 Weapon 2 | . . . . . . . 1 . . . . 1 . . . . . . . . . Parts Attached 250 | . 10 2 29 6 3 2 21 16 30 11 21 12 1 3 3 4 19 15 9 16 17 Power 23 | . 1 1 5 1 . . . . 4 . 3 1 . . . . 3 . 1 . 3 Engine 18 | . 1 1 5 1 . . . . 4 . 3 1 . . . . 1 . . . 1 Core 3 | . . . . . . . . . . . . . . . . . 2 . . . 1 Reactor 2 | . . . . . . . . . . . . . . . . . . . 1 . 1 Propulsion 51 | . 2 . 9 1 1 . 7 . 8 1 10 1 . . . . 5 1 1 2 2 Treads 35 | . 2 . 9 1 . . 4 . 5 . 6 . . . . . 3 1 1 2 1 Leg . | . . . . . . . . . . . . . . . . . . . . . . Wheel 15 | . . . . . 1 . 3 . 3 1 4 1 . . . . 2 . . . . Hover . | . . . . . . . . . . . . . . . . . . . . . . Flight 1 | . . . . . . . . . . . . . . . . . . . . . 1 Utility 74 | . 2 1 6 3 1 . 4 6 4 2 5 4 1 1 . . 6 5 4 11 8 Device 37 | . 1 1 3 1 . . 2 3 1 1 2 3 1 1 . . 1 2 3 6 5 Storage 5 | . 1 . . . 1 . 1 . . . . . . . . . . 1 . 1 . Processor 3 | . . . . . . . . . . . . . . . . . 1 . . 2 . Hackware . | . . . . . . . . . . . . . . . . . . . . . . Protection 29 | . . . 3 2 . . 1 3 3 1 3 1 . . . . 4 2 1 2 3 Artifact . | . . . . . . . . . . . . . . . . . . . . . . Weapon 102 | . 5 . 9 1 1 2 10 10 14 8 3 6 . 2 3 4 5 9 3 3 4 Energy Gun 3 | . 1 . 1 . . . . . . . . . . . . . 1 . . . . Energy Cannon 5 | . . . . . 1 1 . 2 . 1 . . . . . . . . . . . Ballistic Gun 26 | . . . 3 1 . 1 3 3 4 . 1 2 . 1 . 1 1 3 1 1 . Ballistic Cannon 37 | . 2 . 3 . . . 5 1 5 4 1 1 . . 2 2 2 3 1 2 3 Launcher 10 | . 2 . 1 . . . . 2 4 . . . . 1 . . . . . . . Special Weapon 4 | . . . . . . . . . . 2 . . . . . . . 1 1 . . Impact Weapon 12 | . . . 1 . . . 1 2 1 1 1 2 . . 1 . 1 . . . 1 Slashing Weapon . | . . . . . . . . . . . . . . . . . . . . . . Piercing Weapon 2 | . . . . . . . 1 . . . . . . . . 1 . . . . . Special Melee Weapon 3 | . . . . . . . . . . . . 1 . . . . . 2 . . . Unidentified Prototypes 15 | . . . 2 . . . 1 . 3 . 1 . . . . . 2 1 2 3 . Corrupted Parts 2 | . . . . . . . . . . . . . . . . 2 . . . . . System Corruption 12 | . . . . . . . . . . . . . . . . 12 . . . . . Parts Lost 44 | . . . 5 1 . . 3 2 7 2 2 1 . . . . 4 3 . 5 9 Power 10 | . . . 2 . . . . . 2 . 1 1 . . . . . . . 1 3 Propulsion 14 | . . . . 1 . . 1 . 4 1 1 . . . . . 2 1 . 1 2 Utility 13 | . . . 3 . . . 1 2 . 1 . . . . . . 1 . . 2 3 Weapon 7 | . . . . . . . 1 . 1 . . . . . . . 1 2 . 1 1 Highest Loss Streak 8 | . . . 2 1 . . 2 2 3 1 1 1 . . . . 3 1 . 2 8 To Critical Strikes . | . . . . . . . . . . . . . . . . . . . . . . Average Slot Usage (%) 95 | . 91 100 96 99 100 100 98 99 98 98 97 95 86 91 91 92 92 99 93 89 84 Engine 8 | . 13 14 10 11 11 11 9 9 8 9 8 6 7 7 7 7 6 6 1 . 4 Core 1 | . . . . . . . . . . . . . . . . . 6 6 6 4 . Treads 18 | . 14 28 32 32 25 22 18 18 17 18 19 15 15 15 15 15 12 12 6 12 14 Wheel 9 | . . . . . 7 11 16 18 17 17 16 10 7 7 7 7 6 13 13 7 . Device 12 | . 7 14 11 19 11 11 9 9 9 9 8 14 9 14 15 15 12 13 13 15 19 Storage 8 | . 14 14 11 11 11 11 9 9 9 9 9 7 7 7 7 7 6 6 6 5 4 Processor 1 | . . . . . . . . . . . . . . . . . 5 6 6 4 4 Protection 7 | . . . 8 2 11 11 8 8 8 9 8 6 7 7 7 7 5 6 5 5 9 Ballistic Gun 10 | . . . 14 11 2 3 11 6 8 18 7 14 15 14 15 13 12 9 18 14 9 Ballistic Cannon 13 | . 11 28 7 11 11 11 14 17 17 6 16 14 15 15 11 13 10 15 5 7 9 Naked Turns 53 | . . . . . . . . . . . . . . . . . . . . . 53 Heaviest Build 162 | 12 32 34 39 41 108 108 108 109 111 116 110 114 114 114 117 120 134 134 137 146 162 Greatest Support 190 | 20 40 40 60 60 60 16 28 28 28 28 69 40 28 28 28 28 60 24 80 190 190 Greatest Overweight (x) 42 | . 1 . . . 6 6 8 3 8 9 9 4 4 4 4 4 42 5 5 6 . Average Overweight (x) 3 | . . . . . 3 6 3 3 3 3 4 3 3 4 3 4 4 5 2 3 . Largest Inventory Capacity 25 | . 15 15 15 15 25 25 25 25 25 25 25 25 25 25 25 25 25 25 25 25 25 Average Capacity 22 | . 12 15 15 15 21 25 25 25 25 25 25 25 25 25 25 25 25 25 25 25 24 Most Carried 25 | . 15 15 15 15 23 24 25 25 25 25 25 25 25 19 25 25 25 25 25 25 25 Average Carried 21 | . 10 14 14 14 19 23 24 24 24 25 24 24 19 18 19 24 24 23 24 24 22 Final Capacity 25 | 8 15 15 15 15 25 25 25 25 25 25 25 25 25 25 25 25 25 25 25 25 5 Final Carried 25 | 6 15 15 15 15 23 24 25 25 25 25 25 25 19 17 25 25 22 25 25 24 4 Class Distribution -------------------- 20% | Skirmisher 20% | Scavenger-Mutant 19% | Tank 11% | Mutant 9% | Scavenger-Gunner 9% | Scavenger-Tank 4% | Scavenger-Skirmisher Dominant Class ---------------- Mutant | -10/Materials Mutant | -10/Mines Scavenger-Mutant | -9/Materials Scavenger-Mutant | -9/Mines Scavenger-Mutant | -9/Exiles Scavenger-Mutant | -8/Mines Skirmisher | -8/Materials Skirmisher | -8/Garrison Skirmisher | -8/Materials Skirmisher | -8/Garrison Skirmisher | -8/Materials Scavenger-Tank | -7/Factory Tank | -7/Lower Caves Tank | -7/Lower Caves Tank | -7/Zion Tank | -6/Proximity Caves Tank | -6/Factory Commander-Tank | -6/Extension Scavenger-Gunner | -6/Cetus Scavenger-Gunner | -5/Factory Scavenger-Gunner | -4/Factory Resources | -11 -10 -10 -9 -9 -9 -8 -8 -8 -8 -8 -8 -7 -7 -7 -7 -6 -6 -6 -6 -5 -4 ----------- Run | Yrd Mat Min Mat Min Exi Min Mat Gar Mat Gar Mat Fac Low Low Zio Pro Fac Ext Cet Fac Fac Matter Collected 11641 | 200 165 257 840 207 186 22 617 492 1523 694 855 856 117 108 128 237 978 1244 547 688 680 Remotely 1072 | . . . . . . . . . 180 109 34 255 . . . . . 233 . 81 180 Salvage Created 10769 | . 251 181 1234 342 . 72 548 462 1282 356 660 1038 89 174 . 237 1149 856 151 820 867 Parts 528 | . 25 5 76 25 . 5 30 16 61 16 35 63 9 10 . 11 47 26 2 33 33 Haulers Intercepted 25 | . 2 . 4 . . . 3 . 6 . 4 1 . . . . 2 2 . 1 . Recyclers Shooed 12 | . . . . 1 . . 1 . 1 . . 1 . . . . 1 2 . 1 4 Parts Field Recycled . | . . . . . . . . . . . . . . . . . . . . . . Retrieved Matter . | . . . . . . . . . . . . . . . . . . . . . . Parts Self-Destructed 22 | . . . . . . . . . . . . . 9 5 2 6 . . . . . Prevented 2 | . . . . . . . . . . . . . . 1 . 1 . . . . . Kills | -11 -10 -10 -9 -9 -9 -8 -8 -8 -8 -8 -8 -7 -7 -7 -7 -6 -6 -6 -6 -5 -4 ------- Run | Yrd Mat Min Mat Min Exi Min Mat Gar Mat Gar Mat Fac Low Low Zio Pro Fac Ext Cet Fac Fac Combat Hostiles Destroyed 187 | . 8 2 26 8 . 3 6 11 22 5 14 15 2 7 . 5 17 8 2 15 11 Melee 2 | . . . . . . . . . . . . . . . . . 1 . . . 1 Guns 73 | . 2 . 18 4 . 2 2 2 5 2 5 6 1 3 . . 6 4 . 9 2 Cannons 100 | . 6 2 6 4 . 1 4 8 15 3 7 9 1 . . 4 10 4 2 6 8 AOE 10 | . . . 2 . . . . . 2 . 2 . . 4 . . . . . . . Classes Destroyed 21 | . 4 . 4 1 . 1 . 2 1 . 2 2 . 1 . 2 1 . . . . Worker 17 | . . . 1 . . . 3 . 2 . 1 4 . . . . 2 . . 2 2 Builder 13 | . . . . 1 . . . . 5 . 1 2 . . . . 1 1 . . 2 Tunneler 5 | . . . . . . . . . . . 1 2 . . . . . . . 1 1 Hauler 25 | . 2 . 4 . . . 3 . 6 . 4 1 . . . . 2 2 . 1 . Recycler 21 | . . . 1 2 . . 2 . 4 . 1 4 . . . . 1 2 . 1 3 Mechanic 1 | . . . . . . . . . . . . . . . . . 1 . . . . Operator 3 | . . . 1 . . . . . 1 . . 1 . . . . . . . . . Drone 2 | . . . . . . . . . . . . . . . . 2 . . . . . Watcher 13 | . 2 . 1 . . . 3 . 2 . . . . . . . 3 . 1 . 1 Swarmer 34 | . 6 . 5 4 . 2 . . . . . 3 . 4 . . . 1 . 5 4 Cutter 3 | . . . . . . . . . . . 3 . . . . . . . . . . Grunt 77 | . 2 2 14 2 . . 3 6 12 2 8 5 . 2 . . 10 4 . 4 1 Brawler 2 | . . . . . . . . . 1 . . . . . . . . . . 1 . Duelist 4 | . . . . . . . . 2 1 . . 1 . . . . . . . . . Sentry 30 | . . . 7 2 . . 2 1 6 . 2 2 1 . . 1 2 1 . 3 . Specialist 3 | . . . . . . . . 1 . 2 . . . . . . . . . . . Hunter 12 | . . . . . . 1 1 1 2 1 1 . . . . . 2 . . 1 2 Programmer 14 | . . . . . . . . . . . . 3 1 . . 1 3 1 . 1 4 Heavy 1 | . . . . . . . . . . . . 1 . . . . . . . . . Behemoth 2 | . . . . . . . . . . . . . . . . 1 . 1 . . . Cetus Guard 2 | . . . . . . . . . . . . . . . . . . . 2 . . Master Thief 1 | . . . . . . . . . . . . . . 1 . . . . . . . Savage 1 | . . . . . . . . . . . . . . . . 1 . . . . . Butcher 1 | . . . . . . . . . . . . . . . . . . 1 . . . Best Kill Streak 7 | . 3 2 6 4 . 2 4 3 7 2 4 5 1 4 . 2 3 4 2 7 5 Combat Bots Only 7 | . 3 2 6 4 . 2 3 3 3 2 4 5 1 4 . 2 3 4 2 7 4 Max Kills in Single Turn 3 | . 1 1 2 1 . 1 2 1 2 1 3 3 1 3 . 2 2 2 1 2 2 Gunslinging . | . . . . . . . . . . . . . . . . . . . . . . Exploded 3 | . . . 2 . . . . . 1 . 2 . . 3 . . . . . . . Melee 1 | . . . . . . . . . . . . . . . . . 1 . . . 1 Uniques/NPCs Destroyed 1 | . . . . . . . . . . . . . . . . . . . 1 . . A7 (-6/Cetus) Combat | -11 -10 -10 -9 -9 -9 -8 -8 -8 -8 -8 -8 -7 -7 -7 -7 -6 -6 -6 -6 -5 -4 -------- Run | Yrd Mat Min Mat Min Exi Min Mat Gar Mat Gar Mat Fac Low Low Zio Pro Fac Ext Cet Fac Fac Hostile Shots Fired 1360 | . 50 3 148 42 . 5 50 49 113 51 58 102 15 27 . 35 169 113 14 87 229 Missed 405 | . 22 . 37 15 . 2 16 9 33 12 18 33 7 12 . 13 54 38 2 14 68 Damage Taken 14143 | . 340 44 1354 342 . 41 459 668 1368 517 527 711 77 180 . 451 1544 638 299 1607 2976 Core 2223 | . 56 . 146 72 . . 6 62 138 87 29 113 . 46 . 32 149 44 . 93 1150 Absorbed by Shields 417 | . . . . . . . . . . . . 16 . . . . . 271 59 . 71 Reduced by Siege Mode 50 | . . . . . . . . . . . . . . . . . . . . 19 31 Regen/Repaired (Parts) 1109 | . 28 . . . . . . . 101 . 322 . . . . . 219 57 78 145 159 Core Remaining (%) 71 | 100 . 77 . . . 45 . . . . 41 . . . . 72 . . 77 90 . Volleys Fired 616 | . 33 8 79 25 . 5 46 29 94 15 47 37 8 13 . 3 54 39 11 41 29 Largest 4 | . 2 2 2 2 . 1 3 3 3 3 3 4 4 4 . 4 4 4 4 4 4 Hottest 188 | . 90 78 78 58 . 120 119 126 144 120 121 144 144 144 . 151 188 181 161 158 158 Shots Fired 1845 | . 64 16 158 50 . 5 134 68 268 41 131 150 31 47 . 13 203 150 45 155 116 Gun 888 | . 22 . 94 25 . 4 73 19 95 26 64 74 15 22 . 6 100 68 25 97 59 Cannon 945 | . 40 16 63 25 . 1 61 47 168 15 67 76 16 23 . 7 103 82 20 58 57 Launcher 12 | . 2 . 1 . . . . 2 5 . . . . 2 . . . . . . . Special . | . . . . . . . . . . . . . . . . . . . . . . Kinetic 1804 | . 40 16 157 50 . 4 134 61 263 40 131 150 31 45 . 13 203 150 45 155 116 Thermal 18 | . 11 . . . . 1 . 5 . 1 . . . . . . . . . . . Explosive 12 | . 2 . 1 . . . . 2 5 . . . . 2 . . . . . . . Electromagnetic 11 | . 11 . . . . . . . . . . . . . . . . . . . . Robot Hit Streak 21 | . 7 3 17 12 . 16 18 10 13 9 9 15 6 6 . 10 11 9 8 21 7 Robot Miss Streak 8 | . 5 3 3 4 . . 4 2 7 3 3 4 4 8 . 5 5 8 6 7 7 Penetration Max 2 | . . . . . . . . . . . . . . . . . . 2 . . 1 Secondary Targets 3 | . . . 3 . . . . . . . . . . . . . . . . . . Max Gunslinging Chain 1 | . . . 1 . . . . . . . . . . . . . . . . . . Shots Hit Robots 1051 | . 32 8 113 31 . 4 77 36 140 33 72 86 14 16 . 13 108 94 26 94 54 Core Hits 519 | . 14 5 47 13 . 3 26 21 61 10 30 45 4 13 . 7 50 74 19 51 26 Critical Kills 8 | . . . . . . . . . . . . . . . . . 4 4 . . . Critical Parts Destroyed 19 | . . . 1 . . . . . . . . 1 . . . . . 12 1 . 4 Critical Strikes 63 | . 1 . 3 . . . 3 3 5 . 4 2 . 1 . . 10 21 3 1 6 Burn 1 | . 1 . . . . . . . . . . . . . . . . . . . . Destroy 30 | . . . 1 . . . . . . . . 1 . . . . 4 18 2 . 4 Blast 32 | . . . 2 . . . 3 3 5 . 4 1 . 1 . . 6 3 1 1 2 Melee Attacks 49 | . . . 2 . . . 3 5 2 11 3 6 . . 1 4 2 9 . . 1 Impact 34 | . . . 2 . . . 2 5 2 11 3 5 . . 1 . 2 . . . 1 Slashing . | . . . . . . . . . . . . . . . . . . . . . . Piercing 5 | . . . . . . . 1 . . . . . . . . 4 . . . . . Sneak Attacks 11 | . . . . . . . . . . . . 1 . . . 1 . 9 . . . Combat Hostiles . | . . . . . . . . . . . . . . . . . . . . . . Follow-up Attacks . | . . . . . . . . . . . . . . . . . . . . . . Damage Inflicted 27989 | . 564 155 2075 541 . 127 1411 983 4003 959 2246 2099 329 642 . 384 2789 2509 687 2875 2611 Guns 11032 | . 212 . 1159 292 . 58 584 171 891 107 635 801 132 136 . 117 1224 1192 416 1769 1136 Cannons 13850 | . 352 155 737 216 . 32 807 768 2519 285 998 1298 197 188 . 145 1491 1317 271 925 1149 Explosions 1894 | . . . 170 . . . . 44 583 . 612 . . 318 . . 38 . . 129 . Melee 689 | . . . . . . . . . . 567 . . . . . 122 . . . . . Ramming 524 | . . . 9 33 . 37 20 . 10 . 1 . . . . . 36 . . 52 326 Kinetic 24429 | . 352 155 1896 508 . 58 1391 764 3410 358 1633 2099 329 324 . 262 2715 2509 687 2694 2285 Thermal 1108 | . 134 . . . . 32 . 175 41 34 612 . . . . . 38 . . 42 . Explosive 1122 | . . . 131 . . . . 44 542 . . . . 318 . . . . . 87 . Electromagnetic 117 | . 78 . 39 . . . . . . . . . . . . . . . . . . Impact 567 | . . . . . . . . . . 567 . . . . . . . . . . . Slashing . | . . . . . . . . . . . . . . . . . . . . . . Piercing 122 | . . . . . . . . . . . . . . . . 122 . . . . . Highest Corruption 12 | . . . . . . . 4 4 . . . 7 3 3 3 12 3 3 3 7 4 Average Corruption 3 | . . . . . . . 3 3 . . . 2 2 3 3 7 2 3 3 6 3 Corruption Purged 9 | . . . . . . . . 4 . . . 5 . . . . . . . . . Corruption Blocked . | . . . . . . . . . . . . . . . . . . . . . . Effects 144 | . . . . . . . 3 23 . . . 21 6 16 1 8 10 28 11 9 8 Message Errors 32 | . . . . . . . . 5 . . . . 1 6 . 1 2 10 4 1 2 Matter Fused 25 | . . . . . . . 1 3 . . . 3 . 4 1 2 1 3 4 2 1 Heat Flow Errors 17 | . . . . . . . 1 3 . . . 3 1 1 . 1 2 3 . 2 . Energy Discharges 17 | . . . . . . . . 3 . . . 6 1 . . 2 . 2 1 1 1 Parts Rejected 3 | . . . . . . . . . . . . . . . . . 1 1 . 1 . Parts Fused 2 | . . . . . . . . 1 . . . . . 1 . . . . . . . Data Loss (minor) 17 | . . . . . . . . 2 . . . 2 1 1 . 1 2 5 1 1 1 Data Loss (major) 10 | . . . . . . . . 3 . . . 1 1 1 . . 1 2 . . 1 Misfires 12 | . . . . . . . 1 2 . . . 4 . 1 . 1 . 1 1 . 1 Alerts 3 | . . . . . . . . . . . . . . 1 . . . . . 1 1 Weapon Failures 6 | . . . . . . . . 1 . . . 2 1 . . . 1 1 . . . Overload Shots . | . . . . . . . . . . . . . . . . . . . . . . Overflow Damage 552 | . 7 11 5 8 . . 12 . 70 62 121 6 18 10 . . 2 34 21 64 101 Projectiles 312 | . 7 11 5 8 . . 12 . 57 . 7 6 18 . . . 2 34 21 49 75 Explosions 137 | . . . . . . . . . 13 . 114 . . 10 . . . . . . . Melee 103 | . . . . . . . . . . 62 . . . . . . . . . 15 26 Knockbacks 100 | . 5 . 7 1 . . 5 6 16 5 6 8 3 4 . 2 11 6 . 9 6 Impact 3 | . . . . . . . . . . . . . . . . . . . . 1 2 Kinetic 93 | . 5 . 6 1 . . 5 6 15 5 6 8 3 4 . 1 10 6 . 8 4 Secondary 4 | . . . 1 . . . . . 1 . . . . . . 1 1 . . . . Self-Inflicted Damage 265 | . . . 17 . . 18 6 23 92 . . . . . . . . . . 109 . Shots 6 | . . . 2 . . . . 1 1 . . . . . . . . . . 2 . Rammed 38 | . . 1 2 3 . 2 2 . 1 . 1 . . . . . 5 . . 4 17 Targets Rammed 44 | . . 1 3 5 . 2 2 . 1 . 1 . . . . . 6 . . 4 19 Kicked . | . . . . . . . . . . . . . . . . . . . . . . Crushed 6 | . . . 1 2 . . . . . . . . . . . . 1 . . . 2 Highest Temperature 403 | . 108 54 37 . . 54 210 235 24 20 40 132 202 252 . 73 403 341 310 257 38 Average Temperature 77 | . 49 22 11 . . 34 24 100 6 10 12 39 91 108 . 14 95 104 144 74 21 Received Heat Transfer 3339 | . 54 24 453 117 . . 81 333 369 18 180 219 18 18 . 66 537 173 40 288 351 Effects 4 | . . . . . . . . 3 . . . . . . . . 1 . . . . Shutdowns 1 | . . . . . . . . . . . . . . . . . 1 . . . . Interference 3 | . . . . . . . . 3 . . . . . . . . . . . . . Siege Activations 4 | . . . . . . . . . . . . . . . . . . . . 1 3 Total Turns 98 | . . . . . . . . . . . . . . . . . . . . 21 77 Longest Duration 51 | . . . . . . . . . . . . . . . . . . . . 21 51 Robots Corrupted . | . . . . . . . . . . . . . . . . . . . . . . Combat Hostiles . | . . . . . . . . . . . . . . . . . . . . . . Parts Fried 1 | . . . . . . . . . . . . . . . . 1 . . . . . Impact Corruptions 6 | . . . . . . . . . . 3 . . . . . . . . . 1 2 Robots Melted 1 | . . . . . . . . 1 . . . . . . . . . . . . . Combat Hostiles 1 | . . . . . . . . 1 . . . . . . . . . . . . . Parts Melted 4 | . . . . . . . . 1 . 1 2 . . . . . . . . . . Heat Transferred 1541 | . 481 . . . . 80 . 400 50 80 350 . . . . . 50 . . 50 . Parts Sabotaged . | . . . . . . . . . . . . . . . . . . . . . . Parts Stolen 5 | . . . . . . . . . . . . . 2 3 . . . . . . . Parts Stripped . | . . . . . . . . . . . . . . . . . . . . . . Power Chain Reactions . | . . . . . . . . . . . . . . . . . . . . . . Alert | -11 -10 -10 -9 -9 -9 -8 -8 -8 -8 -8 -8 -7 -7 -7 -7 -6 -6 -6 -6 -5 -4 ------- Run | Yrd Mat Min Mat Min Exi Min Mat Gar Mat Gar Mat Fac Low Low Zio Pro Fac Ext Cet Fac Fac Peak Influence 585 | . 266 118 491 343 . 65 127 333 484 463 585 347 . . . . 443 345 200 483 517 Initial 283 | . . 53 3 178 . . . . 161 283 220 130 . . . . 31 217 148 90 236 Average 177 | . 87 63 259 149 . 13 30 224 253 360 391 109 . . . . 75 190 172 260 237 Maximum Alert Level 2 | . 1 . 2 1 . . . 1 2 2 2 1 . . . . 2 1 1 2 2 Low Security (%) 57 | . 97 100 32 66 . 100 100 35 42 . . 87 . . . . 96 39 36 31 30 Level 1 33 | . 2 . 44 33 . . . 64 42 77 57 12 . . . . 2 60 63 59 59 Level 2 8 | . . . 23 . . . . . 14 22 42 . . . . . . . . 9 9 Level 3 . | . . . . . . . . . . . . . . . . . . . . . . Level 4 . | . . . . . . . . . . . . . . . . . . . . . . Level 5 . | . . . . . . . . . . . . . . . . . . . . . . High Security . | . . . . . . . . . . . . . . . . . . . . . . Max Security . | . . . . . . . . . . . . . . . . . . . . . . Squads Dispatched 40 | . 1 . 3 . . . 2 . 2 . 8 7 . . . . 9 1 . 3 4 Investigation 12 | . 1 . 1 . . . 1 . 1 . 3 2 . . . . 3 . . . . Extermination 8 | . . . . . . . . . . . . 3 . . . . 3 . . . 2 Reinforcement 18 | . . . 2 . . . 1 . 1 . 5 2 . . . . 2 1 . 2 2 Assault 1 | . . . . . . . . . . . . . . . . . . . . 1 . Garrison 1 | . . . . . . . . . . . . . . . . . 1 . . . . Intercept . | . . . . . . . . . . . . . . . . . . . . . . Searches Triggered . | . . . . . . . . . . . . . . . . . . . . . . Construction Impeded 2 | . . . 1 . . . . . . . . . . . . . . . . . 1 Haulers Reinforced 3 | . . . . . . . . . . . . . . . . . 2 . . 1 . Active Scanning Responses . | . . . . . . . . . . . . . . . . . . . . . . Cargo Convoy Interrupts 2 | . . . . . . . . . . . . 1 . . . . . . . . 1 Stealth | -11 -10 -10 -9 -9 -9 -8 -8 -8 -8 -8 -8 -7 -7 -7 -7 -6 -6 -6 -6 -5 -4 --------- Run | Yrd Mat Min Mat Min Exi Min Mat Gar Mat Gar Mat Fac Low Low Zio Pro Fac Ext Cet Fac Fac Distress Signals 30 | . . . 3 . . . . . 9 . 8 3 . . . . . 3 2 . 2 Communications Jammed . | . . . . . . . . . . . . . . . . . . . . . . Distress Signals . | . . . . . . . . . . . . . . . . . . . . . . Times Spotted 339 | . 12 2 42 7 . 3 16 12 40 9 21 18 6 11 . 3 28 26 10 19 54 Peak Tracking Total 27 | . 3 2 8 4 . 3 5 4 4 3 4 5 2 4 . 1 7 5 5 5 27 Tactical Retreats 14 | . . . 2 . . 1 . 3 1 . . 1 . 1 . . 1 . . 1 3 Traps | -11 -10 -10 -9 -9 -9 -8 -8 -8 -8 -8 -8 -7 -7 -7 -7 -6 -6 -6 -6 -5 -4 ------- Run | Yrd Mat Min Mat Min Exi Min Mat Gar Mat Gar Mat Fac Low Low Zio Pro Fac Ext Cet Fac Fac Traps Triggered 31 | . 3 . 1 . . . 5 1 2 1 1 7 . . . . 3 5 . 1 1 Indirectly . | . . . . . . . . . . . . . . . . . . . . . . Trap Hack Attempts . | . . . . . . . . . . . . . . . . . . . . . . Triggered . | . . . . . . . . . . . . . . . . . . . . . . Disarmed . | . . . . . . . . . . . . . . . . . . . . . . Reprogrammed 6 | . . . . . . . 6 . . . . . . . . . . . . . . Reused 3 | . . . . . . . 3 . . . . . . . . . . . . . . Traps Extracted . | . . . . . . . . . . . . . . . . . . . . . . Installed . | . . . . . . . . . . . . . . . . . . . . . . Triggered 7 | . . . . . . . 3 . . . . 3 . 1 . . . . . . . Machines | -11 -10 -10 -9 -9 -9 -8 -8 -8 -8 -8 -8 -7 -7 -7 -7 -6 -6 -6 -6 -5 -4 ---------- Run | Yrd Mat Min Mat Min Exi Min Mat Gar Mat Gar Mat Fac Low Low Zio Pro Fac Ext Cet Fac Fac Machines Disabled 55 | . 1 . 7 1 . . 1 . 8 2 8 2 . . . . 6 3 . 11 5 Max in Single Turn 6 | . 1 . 4 1 . . 1 . 4 1 6 1 . . . . 3 . . 4 2 Garrison Access 2 | . . . . . . . . . . . . . . . . . . . . 1 1 Garrison Relay 1 | . . . . . . . . . . 1 . . . . . . . . . . . Machines Repaired . | . . . . . . . . . . . . . . . . . . . . . . Machines Dismantled 3 | . . . . . . . . . . 1 . . . . . . . 1 1 . . Machines Sabotaged . | . . . . . . . . . . . . . . . . . . . . . . Overloaded Fab Kills . | . . . . . . . . . . . . . . . . . . . . . . Hacking | -11 -10 -10 -9 -9 -9 -8 -8 -8 -8 -8 -8 -7 -7 -7 -7 -6 -6 -6 -6 -5 -4 --------- Run | Yrd Mat Min Mat Min Exi Min Mat Gar Mat Gar Mat Fac Low Low Zio Pro Fac Ext Cet Fac Fac Machines Accessed 72 | . 4 . 2 . 2 . 7 1 9 3 12 10 . 1 . . 4 9 . 4 4 Terminals 51 | . 3 . 2 . . . 5 1 7 3 10 7 . 1 . . 1 9 . 1 1 Fabricators 3 | . . . . . . . . . . . . 2 . . . . . . . . 1 Repair Stations 9 | . 1 . . . . . . . 1 . 2 1 . . . . 2 . . 2 . Recycling Units 2 | . . . . . . . 1 . . . . . . . . . . . . . 1 Scanalyzers . | . . . . . . . . . . . . . . . . . . . . . . Garrison Access 5 | . . . . . . . 1 . 1 . . . . . . . 1 . . 1 1 Total Hacks 165 | . 7 . 5 . 2 . 20 2 21 6 30 23 . 2 . . 7 24 . 7 9 Successful 78 | . 3 . 2 . 2 . 12 2 12 2 19 6 . 2 . . 3 8 . 3 2 Failed 87 | . 4 . 3 . . . 8 . 9 4 11 17 . . . . 4 16 . 4 7 Catastrophic 28 | . 1 . 2 . . . 1 . 3 1 4 4 . . . . 2 6 . 2 2 Database Lockouts . | . . . . . . . . . . . . . . . . . . . . . . Manual 78 | . 3 . 3 . 1 . 9 1 11 2 13 20 . . 1 . 1 7 1 2 3 Terminals 126 | . 5 . 5 . . . 17 2 16 6 22 19 . 2 . . 2 24 . 3 3 Fabricators 4 | . . . . . . . . . . . . 3 . . . . . . . . 1 Repair Stations 21 | . 2 . . . . . . . 4 . 8 1 . . . . 3 . . 3 . Recycling Units 3 | . . . . . . . 1 . . . . . . . . . . . . . 2 Scanalyzers . | . . . . . . . . . . . . . . . . . . . . . . Garrison Access 9 | . . . . . . . 2 . 1 . . . . . . . 2 . . 1 3 Terminal Hacks 34 | . 1 . 2 . 2 . 7 1 4 2 5 1 . 2 . . . 7 . . . Record 3 | . . . . . 1 . . . . . . . . 2 . . . . . . . Robot Analysis 1 | . . . 1 . . . . . . . . . . . . . . . . . . Prototype ID Bank 2 | . . . . . . . . . 1 . 1 . . . . . . . . . . Open Door 5 | . . . . . . . . . . 1 . . . . . . . 4 . . . Branch Access Points 3 | . . . . . . . 1 . 1 . 1 . . . . . . . . . . Garrison Index 1 | . . . . . . . 1 . . . . . . . . . . . . . . Unreport Threat 4 | . . . . . . . 1 . 1 . . . . . . . . 2 . . . Reprogram Traps 1 | . . . . . . . 1 . . . . . . . . . . . . . . Investigation Status 1 | . . . . . . . 1 . . . . . . . . . . . . . . Reinforcement Status 1 | . . . . . . . . . . . . 1 . . . . . . . . . Recall Investigation 4 | . 1 . 1 . . . 1 . . . 1 . . . . . . . . . . Recall Reinforcements 1 | . . . . . . . . . . . . . . . . . . 1 . . . Hauler Manifests 4 | . . . . . . . 1 . 1 . 2 . . . . . . . . . . Patrol Navigation 1 | . . . . . . . . . . 1 . . . . . . . . . . . Security Stations 1 | . . . . . . . . 1 . . . . . . . . . . . . . Derelict Proto ID Bank 1 | . . . . . 1 . . . . . . . . . . . . . . . . Fabricator Hacks 1 | . . . . . . . . . . . . . . . . . . . . . 1 Build 1 | . . . . . . . . . . . . . . . . . . . . . 1 Repair Station Hacks 15 | . 2 . . . . . . . 2 . 8 . . . . . 2 . . 1 . Scan Component 8 | . 1 . . . . . . . 1 . 4 . . . . . 1 . . 1 . Repair 7 | . 1 . . . . . . . 1 . 4 . . . . . 1 . . . . Recycling Unit Hacks 1 | . . . . . . . 1 . . . . . . . . . . . . . . Report Inventory 1 | . . . . . . . 1 . . . . . . . . . . . . . . Scanalyzer . | . . . . . . . . . . . . . . . . . . . . . . Garrison Access Hacks 4 | . . . . . . . 1 . 1 . . . . . . . . . . 1 1 Unlock Access 2 | . . . . . . . 1 . 1 . . . . . . . . . . . . Seal Access 2 | . . . . . . . . . . . . . . . . . . . . 1 1 Unauthorized Hacks 23 | . . . . . . . 3 1 5 . 6 5 . . . . 1 1 . 1 . Terminals 22 | . . . . . . . 3 1 5 . 6 4 . . . . 1 1 . 1 . Botnet 22 | . . . . . . . 3 1 5 . 6 4 . . . . 1 1 . 1 . Fabricators 1 | . . . . . . . . . . . . 1 . . . . . . . . . Report 1 | . . . . . . . . . . . . 1 . . . . . . . . . Repair Stations . | . . . . . . . . . . . . . . . . . . . . . . Recycling Units . | . . . . . . . . . . . . . . . . . . . . . . Scanalyzers . | . . . . . . . . . . . . . . . . . . . . . . Garrison Access . | . . . . . . . . . . . . . . . . . . . . . . Data Cores Recovered 2 | . . . . . . . . . 1 . . 1 . . . . . . . . . Used 1 | . . . . . . . . . 1 . . . . . . . . . . . . Hacking Detections 56 | . 4 . 2 . . . 3 1 7 3 9 10 . . . . 4 6 1 3 3 Full Trace Events 6 | . 1 . 1 . . . 1 . . . 1 1 . . . . 1 . . . . Feedback Events . | . . . . . . . . . . . . . . . . . . . . . . Feedback Blocked . | . . . . . . . . . . . . . . . . . . . . . . Robot Schematics Acquired 3 | . . . . . . . . . . . . . . . 3 . . . . . . Robots Built . | . . . . . . . . . . . . . . . . . . . . . . Authchips . | . . . . . . . . . . . . . . . . . . . . . . Time . | . . . . . . . . . . . . . . . . . . . . . . Total Robot Build Rating . | . . . . . . . . . . . . . . . . . . . . . . Part Schematics Acquired 16 | . . . . . . . . . . . . . . . 16 . . . . . . Parts Built 1 | . . . . . . . . . . . . . . . . . . . . . 1 Authchips . | . . . . . . . . . . . . . . . . . . . . . . Time 39 | . . . . . . . . . . . . . . . . . . . . . 39 Total Part Build Rating 7 | . . . . . . . . . . . . . . . . . . . . . 7 Parts Repaired 7 | . 1 . . . . . . . 1 . 4 . . . . . 1 . . . . Time 260 | . 26 . . . . . . . 32 . 164 . . . . . 38 . . . . Parts Recycled . | . . . . . . . . . . . . . . . . . . . . . . Recycled Matter . | . . . . . . . . . . . . . . . . . . . . . . Retrieved Matter . | . . . . . . . . . . . . . . . . . . . . . . Retrieved Components . | . . . . . . . . . . . . . . . . . . . . . . Parts Scanalyzed . | . . . . . . . . . . . . . . . . . . . . . . Part Schematics Acquired . | . . . . . . . . . . . . . . . . . . . . . . Parts Damaged . | . . . . . . . . . . . . . . . . . . . . . . Bothacking | -11 -10 -10 -9 -9 -9 -8 -8 -8 -8 -8 -8 -7 -7 -7 -7 -6 -6 -6 -6 -5 -4 ------------ Run | Yrd Mat Min Mat Min Exi Min Mat Gar Mat Gar Mat Fac Low Low Zio Pro Fac Ext Cet Fac Fac Used RIF Installer . | . . . . . . . . . . . . . . . . . . . . . . Robots Hacked 1 | . . . . . . . . . . . . 1 . . . . . . . . . Non-combat . | . . . . . . . . . . . . . . . . . . . . . . Combat 1 | . . . . . . . . . . . . 1 . . . . . . . . . Robot Hacks Applied 1 | . . . . . . . . . . . . 1 . . . . . . . . . parse_system 1 | . . . . . . . . . . . . 1 . . . . . . . . . Relay Couplers Released 6 | . . . . . . . . . . 3 . . . . . . . . . . 3 Machine Destruction 6 | . . . . . . . . . . 3 . . . . . . . . . . 3 Fabnet Peak Effective % . | . . . . . . . . . . . . . . . . . . . . . . Robots Rewired 7 | . . . . . . . . . . . . . . . . . . 7 . . . Allies Hacked . | . . . . . . . . . . . . . . . . . . . . . . Hacks Repelled . | . . . . . . . . . . . . . . . . . . . . . . Allies | -11 -10 -10 -9 -9 -9 -8 -8 -8 -8 -8 -8 -7 -7 -7 -7 -6 -6 -6 -6 -5 -4 -------- Run | Yrd Mat Min Mat Min Exi Min Mat Gar Mat Gar Mat Fac Low Low Zio Pro Fac Ext Cet Fac Fac Total Allies 23 | . . . . . . . . . . 2 . . . . 2 . . 14 5 . . Largest Group 9 | . . . . . . . . . . 2 . . . . 2 2 . 9 6 5 . Highest-Rated Group 500 | . . . . . . . . . . 51 . . . . 40 40 . 385 500 472 . Highest-Rated Ally 159 | . . . . . . . . . . 31 . . . . 20 20 . 159 152 96 . Total Orders . | . . . . . . . . . . . . . . . . . . . . . . Ally Attacks 169 | . . . . . . . . . . 10 . . . . . 5 . 88 49 17 . Total Damage 5642 | . . . . . . . . . . 208 . . . . . 225 . 2702 1928 579 . Kills 32 | . . . . . . . . . . 2 . . . . . . . 20 7 3 . Allies Corrupted . | . . . . . . . . . . . . . . . . . . . . . . Allies Melted . | . . . . . . . . . . . . . . . . . . . . . . Intel | -11 -10 -10 -9 -9 -9 -8 -8 -8 -8 -8 -8 -7 -7 -7 -7 -6 -6 -6 -6 -5 -4 ------- Run | Yrd Mat Min Mat Min Exi Min Mat Gar Mat Gar Mat Fac Low Low Zio Pro Fac Ext Cet Fac Fac Robot Analysis Total 1 | . . . 1 . . . . . . . . . . . . . . . . . . Derelict Logs Recovered 6 | . . 2 . 1 . . . . . . . . . 1 1 1 . . . . . Drone Launches . | . . . . . . . . . . . . . . . . . . . . . . Drone Recoveries . | . . . . . . . . . . . . . . . . . . . . . . Exploration | -11 -10 -10 -9 -9 -9 -8 -8 -8 -8 -8 -8 -7 -7 -7 -7 -6 -6 -6 -6 -5 -4 ------------- Run | Yrd Mat Min Mat Min Exi Min Mat Gar Mat Gar Mat Fac Low Low Zio Pro Fac Ext Cet Fac Fac Turns Passed 24954 | . 866 752 1760 1100 738 1408 1716 1089 2021 486 1712 1987 533 805 1431 654 1547 1637 512 951 1249 Spaces Moved 12329 | 1 482 440 826 628 405 582 646 481 877 253 785 928 341 446 882 383 760 861 192 467 663 Core 97 | . . . . . . . . . . . . . . . . . 1 . . . 96 Treads 3069 | . 187 440 826 628 155 . . . 1 . 1 1 . . . . 3 . 134 133 560 Legs 296 | 1 295 . . . . . . . . . . . . . . . . . . . . Wheels 8860 | . . . . . 250 582 646 481 876 253 784 927 341 446 882 383 756 861 58 334 . Hover . | . . . . . . . . . . . . . . . . . . . . . . Flight 7 | . . . . . . . . . . . . . . . . . . . . . 7 Fastest Speed 35 | 120 120 160 160 160 160 190 140 140 140 140 140 145 145 160 145 160 160 165 165 160 35 Average Speed 158 | 120 146 160 160 160 178 190 145 140 147 151 156 155 149 160 159 160 163 165 217 164 142 Slowest Speed 2150 | 120 190 160 160 160 320 190 210 140 480 225 240 330 160 160 160 160 2150 165 240 180 163 Overloaded Moves . | . . . . . . . . . . . . . . . . . . . . . . Propulsion Burnouts . | . . . . . . . . . . . . . . . . . . . . . . Robots Hopped 1 | . . . . . . . . . . . . . . . . . . . . . 1 Cave-ins Triggered . | . . . . . . . . . . . . . . . . . . . . . . Exploration Rate (%) 58 | 2 66 97 70 99 70 93 56 36 80 23 91 27 59 72 80 48 18 89 79 16 21 Regions Visited 21 Branch Regions 10 Pre-discovered Areas 3 | . . . . . 1 . . . . . . . . . 2 . . . . . . Known Exits Taken 7 | . . . 1 . . . 1 . 1 . 1 . . . . . 1 1 1 . . Unknown Exits Taken 12 | 1 1 1 . 1 1 1 . . . . . 1 1 1 1 1 . . . 1 . Scrap Searched 10 | . . 2 . 1 . 1 . . . . . . 1 2 2 1 . . . . . Spaces Dug 47 | . 9 . 1 . . . 3 2 21 . 2 4 . . . . 4 . . . 1 Terrain Destroyed 527 | . 20 . 11 . . . 7 22 118 . 46 18 5 18 . 1 65 28 11 75 82 Melee 17 | . . . 1 . . . 3 2 2 . 2 4 . . . . 2 . . . 1 Projectile 275 | . 3 . 3 . . . 4 1 49 . 19 14 5 10 . 1 24 28 11 42 61 AOE 235 | . 17 . 7 . . . . 19 67 . 25 . . 8 . . 39 . . 33 20 Terrain Rammed . | . . . . . . . . . . . . . . . . . . . . . . Walls Destroyed . | . . . . . . . . . . . . . . . . . . . . . . Machines Disabled . | . . . . . . . . . . . . . . . . . . . . . . Actions | -11 -10 -10 -9 -9 -9 -8 -8 -8 -8 -8 -8 -7 -7 -7 -7 -6 -6 -6 -6 -5 -4 --------- Run | Yrd Mat Min Mat Min Exi Min Mat Gar Mat Gar Mat Fac Low Low Zio Pro Fac Ext Cet Fac Fac Total 16392 | . 579 473 1110 672 420 877 1316 833 1430 309 1187 1390 349 511 902 411 959 985 252 547 880 Wait 2698 | . 32 20 130 . 1 286 559 279 387 12 306 355 . 48 9 12 107 6 7 7 135 Move 12307 | . 481 439 825 627 404 581 646 480 876 252 784 927 340 445 881 382 759 860 191 466 661 Hop 1 | . . . . . . . . . . . . . . . . . . . . . 1 Pick Up 155 | . 13 . 14 3 7 1 18 7 18 2 11 11 . 2 5 2 4 9 11 7 10 Fast Attach 65 | . 5 1 8 1 2 . 4 1 12 1 7 1 . . 1 2 7 3 2 5 2 Attach 55 | . . . 5 1 . . 5 2 6 . 4 4 1 1 1 . 7 2 . 5 11 Detach 20 | . 3 1 3 1 1 . 2 . 1 . . 2 . . 2 . . 1 1 1 1 Swap 130 | . 5 1 16 4 1 2 12 13 12 10 10 7 . 2 1 2 5 10 7 6 4 Drop 162 | . 7 2 25 5 4 . 19 9 21 3 14 9 . . 1 4 8 6 14 5 6 Fire 616 | . 33 8 79 25 . 5 46 29 94 15 47 37 8 13 . 3 54 39 11 41 29 Melee 49 | . . . 2 . . . 3 5 2 11 3 6 . . 1 4 2 9 . . 1 Ram 4 | . . . . . . 2 1 . 1 . . . . . . . . . . . . Kick . | . . . . . . . . . . . . . . . . . . . . . . Crush 40 | . . 1 3 5 . . 1 . . . 1 . . . . . 6 . . 4 19 Escape Stasis 71 | . . . . . . . . 8 . . . 31 . . . . . 32 . . . Rewire . | . . . . . . . . . . . . . . . . . . . . . . Trap . | . . . . . . . . . . . . . . . . . . . . . . Miscellaneous 19 | . . . . . . . . . . 3 . . . . . . . 8 8 . . Route ------- -11/Scrapyard -10/Materials (discovered 3 exits: *Mat x2 / [*Min]) -10/Mines (discovered 2 exits: *Mat x2) -9/Materials (discovered 4 exits: *Mat x2 / *Min / [*Sto]) -9/Mines (discovered 3 exits: *Mat x2 / *Exi) -9/Exiles -8/Mines (discovered 2 exits: *Mat x2) -8/Materials (discovered 3 exits: *Fac x2 / Gar) -8/Garrison -8/Materials (discovered 3 exits: *Fac x2 / Gar) -8/Garrison -8/Materials (discovered 3 exits: *Fac x3) -7/Factory -7/Lower Caves -7/Lower Caves -7/Zion -6/Proximity Caves -6/Factory (discovered 2 exits: Fac / *Ext) -6/Extension (discovered 2 exits: *Fac / *Cet) -6/Cetus (discovered 2 exits: *Fac / [*Arc]) -5/Factory (discovered 2 exits: *Fac x2) -4/Factory (discovered 1 exit: [*Upp]) History --------- Turn | Location | Event 1 | -11/Scrapyard | Discovered new exit (range 0) 1 | -11/Scrapyard | Entered Materials 205 | -10/Materials | Discovered new exit (range 10) 315 | -10/Materials | Build established: Mutant 442 | -10/Materials | Discovered new exit (range 11) 611 | -10/Materials | Discovered new exit (range 11) 708 | -10/Materials | Repaired Lgt. Ion Engine 867 | -10/Materials | Entered Mines 1045 | -10/Mines | Learned location of 1 exit from Materials 1074 | -10/Mines | Discovered new exit (range 9) 1076 | -10/Mines | Learned Materials stockpile data 1254 | -10/Mines | Discovered new exit (range 10) 1366 | -10/Mines | Found a hidden stash of uninstalled traps 1619 | -10/Mines | Entered Materials 1619 | -9/Materials | Evolved 2 slots: Propulsion x1, Utility x1 1620 | -9/Materials | Identified exit to Mines 2010 | -9/Materials | Discovered new exit (range 12) 2167 | -9/Materials | Discovered new exit (range 3) 2304 | -9/Materials | Build established: Scavenger-Mutant 2639 | -9/Materials | Discovered new exit (range 8) 3379 | -9/Materials | Entered Mines 3385 | -9/Mines | Met a Derelict bent on vengeance 3530 | -9/Mines | Discovered new exit (range 8) 3630 | -9/Mines | Received a Rocket Launcher from a helpful Derelict 3759 | -9/Mines | Discovered new exit (range 8) 3838 | -9/Mines | Deemed a non-threat by the Exiles lab entrance 3840 | -9/Mines | Discovered new exit (range 5) 3939 | -9/Mines | Learned location of 1 exit from Materials 4088 | -9/Mines | A weapon hastily lodged in a ceiling crevice suddenly fell to the ground 4196 | -9/Mines | Core integrity fell below 50% 4479 | -9/Mines | Entered Exiles 4519 | -9/Exiles | Met 8R-AWN 4547 | -9/Exiles | Met EX-HEX 4588 | -9/Exiles | Met EX-BIN 4612 | -9/Exiles | Aligned with FarCom system 4614 | -9/Exiles | Given EX-Vault access code 4652 | -9/Exiles | Opened EX-Vault 4666 | -9/Exiles | Found Gui. Plasma Cannon 4740 | -9/Exiles | Found XL Autogun Array 4789 | -9/Exiles | Warned to stay clear of 0b10 Research branches 4844 | -9/Exiles | Met EX-DEC 4863 | -9/Exiles | Learned location of Zion (-7) 5196 | -9/Exiles | Discovered new exit (range 14) 5217 | -9/Exiles | Stole two prototypes: Gui. Plasma Cannon, XL Autogun Array 5217 | -9/Exiles | Entered Mines 6455 | -8/Mines | Discovered new exit (range 16) 6603 | -8/Mines | Discovered new exit (range 5) 6625 | -8/Mines | Entered Materials 6625 | -8/Materials | Evolved 2 slots: Propulsion x1, Weapon x1 6626 | -8/Materials | Identified exit to Factory 7115 | -8/Materials | Build established: Scavenger-Skirmisher 7322 | -8/Materials | Discovered exit to Factory (range 13) 7684 | -8/Materials | Build established: Skirmisher 8341 | -8/Materials | Identified exit to Garrison 8341 | -8/Materials | Entered Garrison 8568 | -8/Garrison | Learned Materials security intel 8648 | -8/Garrison | Triggered checkpoint 8853 | -8/Garrison | Triggered checkpoint 9109 | -8/Garrison | Build established: Scavenger-Mutant 9339 | -8/Garrison | Discovered new exit (range 8) 9430 | -8/Garrison | Entered Materials 9500 | -8/Materials | Build established: Skirmisher 9553 | -8/Materials | Lost 3 parts (3n) 10368 | -8/Materials | Discovered exit to Factory (range 12) 10422 | -8/Materials | Repaired Imp. Treads 11042 | -8/Materials | Discovered exit to Factory (range 5) 11419 | -8/Materials | Identified exit to Garrison 11451 | -8/Materials | Entered Garrison 11622 | -8/Garrison | Triggered checkpoint 11708 | -8/Garrison | Rescued a captive Derelict 11708 | -8/Garrison | Rescued a captive Derelict 11765 | -8/Garrison | Garrison Relay disabled 11828 | -8/Garrison | Triggered checkpoint 11853 | -8/Garrison | Discovered new exit (range 5) 11879 | -8/Garrison | Core integrity fell below 50% 11937 | -8/Garrison | Entered Materials 12586 | -8/Materials | Build established: Mutant 12637 | -8/Materials | Discovered exit to Factory (range 15) 12834 | -8/Materials | Met 7R-MNS 13014 | -8/Materials | Discovered exit to Factory (range 7) 13151 | -8/Materials | Repaired Hrd. Medium Armor Plating 13191 | -8/Materials | Build established: Skirmisher 13231 | -8/Materials | Repaired Adv. Cooling System 13264 | -8/Materials | Repaired Imp. Treads 13303 | -8/Materials | Repaired Arm. Treads 13416 | -8/Materials | Discovered exit to Factory (range 15) 13649 | -8/Materials | Entered Factory 13649 | -7/Factory | Evolved 2 slots: Utility x1, Weapon x1 13650 | -7/Factory | Caught up to 7R-MNS 13651 | -7/Factory | FarCom data flow suspended 13983 | -7/Factory | Build established: Scavenger-Tank 15289 | -7/Factory | Cargo convoy interrupted 15561 | -7/Factory | Discovered new exit (range 15) 15636 | -7/Factory | Entered Lower Caves 15636 | -7/Lower Caves | Spotted TX-5MU(f) 15636 | -7/Lower Caves | Spotted OS-ZJC(f) 15637 | -7/Lower Caves | Gui. Plasma Cannon stolen by Master Thief 15637 | -7/Lower Caves | XL Autogun Array stolen by Master Thief 15638 | -7/Lower Caves | Encountered a Master Thief 15638 | -7/Lower Caves | Encountered a Master Thief 15700 | -7/Lower Caves | Build established: Tank 15911 | -7/Lower Caves | Attracted the attention of an 0b10 checkpoint 16146 | -7/Lower Caves | Discovered new exit (range 6) 16169 | -7/Lower Caves | Entered another Lower Caves area 16676 | -7/Lower Caves | Spotted KL-ZOX(f) 16677 | -7/Lower Caves | Encountered a Master Thief 16680 | -7/Lower Caves | Destroyed KL-ZOX(f) 16681 | -7/Lower Caves | Spotted 7P-ON3(f) 16682 | -7/Lower Caves | Encountered a Master Thief 16682 | -7/Lower Caves | Spotted BO-4BT(f) 16682 | -7/Lower Caves | Spotted FE-JVS(f) 16683 | -7/Lower Caves | Encountered a Master Thief 16683 | -7/Lower Caves | Encountered a Master Thief 16684 | -7/Lower Caves | Adv. Cooling System stolen by Master Thief 16686 | -7/Lower Caves | Imp. Kinecellerator stolen by Master Thief 16689 | -7/Lower Caves | Lyr. Heavy Armor Plating stolen by Master Thief 16787 | -7/Lower Caves | Learned location of 1 exit from Factory 16932 | -7/Lower Caves | Discovered new exit (range 7) 16974 | -7/Lower Caves | Entered Zion 17027 | -7/Zion | System corruption cleaned by Quarantine Array 17419 | -7/Zion | Received a visual enhancement algorithm 17536 | -7/Zion | Learned location of Warlord (-5) 17720 | -7/Zion | Learned Factory garrison access intel 17748 | -7/Zion | Found Prototype Energy Gun 17951 | -7/Zion | Found CR-A16's Pointy Stick 18188 | -7/Zion | Discovered new exit (range 15) 18298 | -7/Zion | Learned Factory stockpile data 18300 | -7/Zion | Gained Derelict followers 18405 | -7/Zion | Entered Proximity Caves 18405 | -6/Proximity Caves | Accompanied by 2 allies 18522 | -6/Proximity Caves | Learned Factory garrison access intel 18740 | -6/Proximity Caves | Spotted B-75 Beast 18762 | -6/Proximity Caves | Revealed the true nature of CR-A16's Pointy Stick 18763 | -6/Proximity Caves | Destroyed B-75 Beast 18894 | -6/Proximity Caves | Attracted the attention of an 0b10 checkpoint 18954 | -6/Proximity Caves | Discovered new exit (range 9) 19056 | -6/Proximity Caves | System corruption reached 10% 19059 | -6/Proximity Caves | Entered Factory 19059 | -6/Factory | Evolved 2 slots: Power x1, Utility x1 19060 | -6/Factory | Identified exit to Factory 19062 | -6/Factory | Loaded intel: 4 garrison access locations 19250 | -6/Factory | Repaired Hrd. Medium Armor Plating 19348 | -6/Factory | Build established: Scavenger-Skirmisher 19780 | -6/Factory | Build established: Tank 19941 | -6/Factory | Discovered new exit (range 9) 19954 | -6/Factory | Identified exit to Extension 20567 | -6/Factory | Garrison activated, responded to threat 20599 | -6/Factory | Lost 3 parts (2n1w) 20606 | -6/Factory | Entered Extension 20858 | -6/Extension | Build established: Scavenger-Tank 20860 | -6/Extension | Rescued A7 21130 | -6/Extension | Rescued a captive Derelict 21131 | -6/Extension | Rescued a captive Derelict 21239 | -6/Extension | Build established: Commander-Tank 21615 | -6/Extension | Spotted B-75 Beast 21632 | -6/Extension | Spotted B-75 Beast 21634 | -6/Extension | Destroyed B-75 Beast 21647 | -6/Extension | Allies destroyed B-75 Beast 21656 | -6/Extension | Disrupted transfer network 21672 | -6/Extension | Lost 6 allies 21705 | -6/Extension | P-60 Hacker assimilated allied LC-3JA(h) 21759 | -6/Extension | Found Prototype Protection 21759 | -6/Extension | Identified Med. Regenerative Plating 21856 | -6/Extension | Rescued a captive Derelict 21944 | -6/Extension | Rescued a captive Derelict 21945 | -6/Extension | Rescued a captive Derelict 22070 | -6/Extension | Build established: Scavenger-Gunner 22070 | -6/Extension | Rescued a captive Derelict 22107 | -6/Extension | Discovered exit to Factory (range 10) 22108 | -6/Extension | Discovered new exit (range 6) 22139 | -6/Extension | Identified exit to Cetus 22243 | -6/Extension | Entered Cetus 22243 | -6/Cetus | Accompanied by 5 allies (A7) 22248 | -6/Cetus | Acquired a Cetus Manufacturing Module code from A7 22265 | -6/Cetus | Spotted Cetus Guard 22265 | -6/Cetus | Spotted Cetus Guard 22270 | -6/Cetus | Spotted Cetus Guard 22270 | -6/Cetus | Spotted Cetus Guard 22278 | -6/Cetus | Allies destroyed Cetus Guard 22285 | -6/Cetus | Allies destroyed Cetus Guard 22290 | -6/Cetus | Destroyed Cetus Guard 22293 | -6/Cetus | Destroyed Cetus Guard 22315 | -6/Cetus | Lost 3 allies 22426 | -6/Cetus | Started Cetus Manufacturing Module 22451 | -6/Cetus | Manufactured an Enhanced Grunt 22456 | -6/Cetus | Destroyed A7 22457 | -6/Cetus | Extracted ID and sensor layout for unrecognized location from A7's data core 22476 | -6/Cetus | Manufactured an Enhanced Grunt 22501 | -6/Cetus | Manufactured an Enhanced Grunt 22526 | -6/Cetus | Manufactured an Enhanced Grunt 22551 | -6/Cetus | Manufactured an Enhanced Grunt 22621 | -6/Cetus | Discovered new exit (range 16) 22672 | -6/Cetus | Spotted Cetus Guard 22673 | -6/Cetus | Spotted Cetus Guard 22678 | -6/Cetus | Spotted Cetus Guard 22679 | -6/Cetus | Spotted Cetus Guard 22679 | -6/Cetus | Allies destroyed Cetus Guard 22680 | -6/Cetus | Allies destroyed Cetus Guard 22690 | -6/Cetus | Discovered exit to Factory (range 16) 22691 | -6/Cetus | Allies destroyed Cetus Guard 22696 | -6/Cetus | Allies destroyed Cetus Guard 22704 | -6/Cetus | Met Revision 17 22755 | -6/Cetus | Entered Factory 22755 | -5/Factory | Accompanied by 5 allies 22755 | -5/Factory | Evolved 2 slots: Propulsion x1, Utility x1 22756 | -5/Factory | Loaded intel: 4 garrison access locations 22887 | -5/Factory | Lost 3 allies 23222 | -5/Factory | Discovered new exit (range 16) 23378 | -5/Factory | Found Prototype Processor 23379 | -5/Factory | Identified Exp. Targeting Computer 23384 | -5/Factory | Found Exp. Targeting Computer 23621 | -5/Factory | Discovered new exit (range 15) 23655 | -5/Factory | First assault squad dispatched 23676 | -5/Factory | Destroyed 7 combat bots 23706 | -5/Factory | Entered another Factory area 23706 | -4/Factory | Evolved 2 slots: Utility x2 23866 | -4/Factory | Fabricated Imp. Heavy Treads (x1) 24410 | -4/Factory | Discovered new exit (range 3) 24895 | -4/Factory | Spotted Executioner 24896 | -4/Factory | Cargo convoy interrupted 24899 | -4/Factory | Released all parts (15) 24911 | -4/Factory | Core integrity fell below 50% 24941 | -4/Factory | Core integrity fell below 20% 24952 | -4/Factory | Lost 8 parts (3p2n2u1w) 24955 | -4/Factory | Destroyed by C-35 Carver with Carbide Saw Last Messages --------------- 24909_ Terminal disabled. 24910_ Slug penetrates Subcomponent Replicator. 24910_ Subcomponent Replicator disabled. 24910_ Slug penetrates Subcomponent Replicator. 24910_ ALERT: Suspicious intruders detected, dispatching Cutter reinforcements to area. 24915_ E-15 Imp destroyed. 24915_ K-01 Serf collects debris. 24916_ Acquired 17 matter. 24918_ Acquired Cesium-ion Thruster. 24921_ Cesium-ion Thruster destroyed. 24921_ Knocked back. 24922_ Acquired 4 matter. 24932_ C-35 Carver knocked back. 24932_ C-35 Carver destroyed. 24932_ Knocked back. 24932_ C-30 ARC bursts open, deploying its payload. 24932_ G-73 Enforcer unfolds itself. 24932_ G-67 Veteran unfolds itself. 24935_ System corrupted: Matter fused (-5). Map ----- +----------------------------------------------------+ | ?????????????????????????????????????????????????? | | ?????????????????????????????????????????????????? | | ?????????????????????????????????????????????????? | | ?????????????????????????????????????????????????? | | ?????????????????????????????????????????????????? | | ?????????????????????????????????????????????????? | | ?????????????????????????????????????????????????? | | ?????????????????????????????????????????????????? | | ??????????????????????????????????????????????? ?? | | ???????????????????????????????????????????????! ? | | ??????????????????????????????????????????????!! ? | | ??????????????????????????????????????????????!! ? | | ????????????????????????????????????????????? | | ?????????????????????????????????????? ? | | ??????????????????????????????????????# """"" "" | | ??????????????????????????????????????# """"" "" | | ??????????????????????????????????????# """ "" | | ??????????????????????????????????????# | | ??????????????????????????????????????# " " "" | | ??????????????????????????????????????# " " "" | | ??????????????????????????????????????# ""G"" "" | | ??????????????????????????????????????# | | ??????????????????????????????????????# | | ?????????????############+############# ## | | ?????????? ## #? | | ?????????? @ #### ###? | | ?????????? """c """ """ #??# #??? | | ?????????? "F" """ """ #??# #??? | | ??????????? " """ """ #??# #??? | | ????????????? """ """ """ #??# #??? | | ?????????????? k k """ c #??# #??? | | ???????????????#+#### """ """ #### ###? | | ????????????????????# """ """ ## * # | | ????????????????????# """ """ ## | | ????????????????????# """ | | ????????????????????# | | ????????????????????# | | ????????????????????# | | ????????????????????# | | ????????????????????# ## | | ????????????????????# ########### #? | | ????????????????????# ??????????#####+#####? | | ????????????????????# ??????????????? ????? | | ????????????????????? ? ??????????????? ????? | | ????????????????????????? ??????????????? ???? | | ??????????????????????????????????????????? ???? | | ???????????????????????????????????????????? ????? | | ?????????????????????????????????????????????????? | | ?????????????????????????????????????????????????? | | ?????????????????????????????????????????????????? | +----------------------------------------------------+ Best States ------------- Heat Dissipation 103 Energy Generation 38 Energy Capacity 550 Matter Stores 300 Matter Capacity 300 Sight Range 22 Robot Scan Range 15 Terrain Scan Density 10 Armor Coverage 750 Weapon Cycling 15 Evasion (%) 55 Recoil Reduction 5 Kinecelleration 40 Item Schematics ----------------- Mak. Spear | -7/Zion | Archive Fusion Compressor | -7/Zion | Archive Imp. Reaction Control System | -7/Zion | Archive Kinecellerator | -7/Zion | Archive Imp. Thermal Generator | -7/Zion | Archive Core Analyzer | -7/Zion | Archive Hvy. Phase Cannon | -7/Zion | Archive Enh. Optical Array | -7/Zion | Archive Mak. System Shield | -7/Zion | Archive Mak. Laser | -7/Zion | Archive EM Disruption Field | -7/Zion | Archive Mak. Shrapnel Gun | -7/Zion | Archive System Guard | -7/Zion | Archive Disruptor Cannon | -7/Zion | Archive Imp. Salvage Targeting Computer | -7/Zion | Archive HERF Cannon | -7/Zion | Archive Robot Schematics ------------------ Y-54 Guardian | -7/Zion | Archive A-02 Transporter | -7/Zion | Archive B-36 Bruiser | -7/Zion | Archive Fabricated ------------ Imp. Heavy Treads | x1 | -4/Factory | Preloaded Alien Tech Used ----------------- None Achievements -------------- None Challenges ------------ None Game ------ Seed GodSpectralScanner Manual? 0 Play Time 03:23:18 Cumulative 113.8 hours Start 2024.07.27 @ 21:09:33 End 2024.07.29 @ 17:51:04 Sessions 9 Manual Loads 0 Difficulty Rogue Special Mode None Game No. 78 Rogue 78 Adventurer 0 Explorer 0 Win Type - Total 4 Types 3/0/1/0/0/0/0/0/0 Lore% 55 Gallery% 62 Achievement% 50 Wizard Run 0 Options --------- Layout 0 ASCII 0 Keyboard 1 Movement Numpad Keybinds 0 Fullscreen 1 Font 24/Proggy Map View 76x56 Zoom Use 0% Tactical HUD 1 Map Filters NONE Filters NONE Steam 1 RUN: ff5891f3-47ea-4cff-8e98-afa63f45383f